fUST/lending_fUST_20251117
["ID","MTS","AMOUNT","RATE_DAILY","PERIOD"]
[394200189,1763373040372,-520.3994367,0.00014906,2]
[394200190,1763373040382,-4014.7815156,0.00014906,2]
[394200191,1763373040392,-4014.7815156,0.00014906,2]
[394200192,1763373040401,-520.3994367,0.00014906,2]
[394200193,1763373040410,-4014.7815156,0.00014906,2]
[394200194,1763373040489,-520.3994367,0.00014906,2]
[394200195,1763373040499,-4014.7815156,0.00014906,2]
[394200196,1763373040508,-520.3994367,0.00014906,2]
[394200197,1763373040518,-4014.7815156,0.00014906,2]
[394200198,1763373040528,-520.3994367,0.00014906,2]
[394200199,1763373040538,-4014.7815156,0.00014906,2]
[394200200,1763373040547,-520.3994367,0.00014906,2]
[394200201,1763373040557,-4014.7815156,0.00014906,2]
[394200202,1763373040566,-520.3994367,0.00014906,2]
[394200203,1763373040575,-4014.7815156,0.00014906,2]
[394200204,1763373040585,-520.3994367,0.00014906,2]
[394200205,1763373040593,-4014.7815156,0.00014906,2]
[394200206,1763373040602,-4014.7815156,0.00014906,2]
[394200207,1763373040612,-520.3994367,0.00014906,2]
[394200208,1763373040621,-4014.7815156,0.00014906,2]
[394200209,1763373040630,-4014.7815156,0.00014906,2]
[394200210,1763373040640,-4014.7815156,0.00014906,2]
[394200211,1763373040649,-4014.7815156,0.00014906,2]
[394200212,1763373040659,-168.70265238,0.00014907,2]
[394200213,1763373040668,-151.0,0.00014907,2]
[394200214,1763373040678,-151.0,0.00014907,2]
[394200215,1763373040687,-151.0,0.00014907,2]
[394200216,1763373040697,-207.60022691,0.00014907,2]
[394200217,1763373040706,-1000.0,0.00014908,2]
[394200218,1763373040716,-1000.0,0.00014908,2]
[394200219,1763373040725,-1000.0,0.00014908,2]
[394200220,1763373040734,-346.41435785,0.00014908,2]
[394200221,1763373040743,-11323.975903,0.0001491,2]
[394200222,1763373040753,-487.69093618,0.0001491,2]
[394200223,1763373040763,-500.0,0.00015058,2]
[394200224,1763373040773,-500.0,0.00015058,2]
[394200225,1763373040782,-500.0,0.0001506,2]
[394200226,1763373040793,-890.70203381,0.00015068,2]
[394200227,1763373040803,-500.0,0.0001516,2]
[394200228,1763373040812,-500.0,0.0001516,2]
[394200229,1763373040821,-179.68555753,0.00015173,2]
[394200230,1763373040831,-500.0,0.00015316,2]
[394200231,1763373040841,-100000.0,0.0001532,2]
[394200232,1763373040851,-500.0,0.00015373,2]
[394200233,1763373040860,-300.0,0.00015464,2]
[394200234,1763373040870,-300.0,0.00015464,2]
[394200235,1763373040880,-300.0,0.00015464,2]
[394200236,1763373040890,-300.0,0.00015464,2]
[394200237,1763373040900,-300.0,0.00015464,2]
[394200238,1763373040910,-300.0,0.00015464,2]
[394200239,1763373040919,-300.0,0.00015464,2]
[394200240,1763373040929,-300.0,0.00015464,2]
[394200241,1763373040938,-300.0,0.00015464,2]
[394200242,1763373040948,-300.0,0.00015464,2]
[394200243,1763373040958,-300.0,0.00015464,2]
[394200244,1763373040967,-300.0,0.00015464,2]
[394200245,1763373040977,-300.0,0.00015464,2]
[394200246,1763373040986,-300.0,0.00015464,2]
[394200247,1763373040995,-300.0,0.00015464,2]
[394200248,1763373041005,-581.56023348,0.000157,2]
[394200249,1763373041014,-420.0,0.00016314,2]
[394200250,1763373041023,-1680.0,0.00016315,2]
[394200251,1763373041033,-500.0,0.00016438,2]
[394200252,1763373041042,-500.0,0.00016438,2]
[394200253,1763373041051,-500.0,0.00016438,2]
[394200254,1763373041060,-500.0,0.00016438,2]
[394200255,1763373041069,-500.0,0.00016438,2]
[394200256,1763373041079,-500.0,0.00016438,2]
[394200257,1763373041087,-500.0,0.00016438,2]
[394200258,1763373041096,-500.0,0.00016438,2]
[394200259,1763373041105,-500.0,0.00016438,2]
[394200260,1763373041114,-500.0,0.00016438,2]
[394200261,1763373041123,-500.0,0.00016438,2]
[394200262,1763373041132,-500.0,0.00016438,2]
[394200263,1763373041141,-399.95511442,0.00016438,2]
[394200264,1763373041150,-500.0,0.00016438,2]
[394200265,1763373041159,-500.0,0.00016438,2]
[394200266,1763373041169,-500.0,0.00016438,2]
[394200267,1763373041178,-500.0,0.00016438,2]
[394200268,1763373041187,-500.0,0.00016438,2]
[394200269,1763373041195,-500.0,0.00016438,2]
[394200270,1763373041204,-500.0,0.00016438,2]
[394200271,1763373041213,-500.0,0.00016438,2]
[394200272,1763373041223,-500.0,0.00016438,2]
[394200273,1763373041232,-500.0,0.00016438,2]
[394200274,1763373041242,-500.0,0.00016438,2]
[394200275,1763373041251,-500.0,0.00016438,2]
[394200276,1763373041260,-588.0371519,0.00016438,2]
[394200277,1763373041269,-500.0,0.00016438,2]
[394200278,1763373041278,-500.0,0.00016438,2]
[394200279,1763373041288,-500.0,0.00016438,2]
[394200280,1763373041297,-500.0,0.00016438,2]
[394200281,1763373041306,-500.0,0.00016438,2]
[394200282,1763373041315,-500.0,0.00016438,2]
[394200283,1763373041324,-500.0,0.00016438,2]
[394200284,1763373041333,-500.0,0.00016438,2]
[394200285,1763373041342,-500.0,0.00016438,2]
[394200286,1763373041351,-500.0,0.00016438,2]
[394200287,1763373041360,-500.0,0.00016438,2]
[394200288,1763373041369,-500.0,0.00016438,2]
[394200289,1763373041379,-500.0,0.00016438,2]
[394200290,1763373041388,-500.0,0.00016438,2]
[394200291,1763373041396,-500.0,0.00016438,2]
[394200292,1763373041406,-500.0,0.00016438,2]
[394200293,1763373041415,-500.0,0.00016438,2]
[394200294,1763373041424,-500.0,0.00016438,2]
[394200295,1763373041433,-500.0,0.00016438,2]
[394200296,1763373041442,-500.0,0.00016438,2]
[394200297,1763373041451,-500.0,0.00016438,2]
[394200298,1763373041460,-500.0,0.00016438,2]
[394200299,1763373041469,-500.0,0.00016438,2]
[394200300,1763373041478,-500.0,0.00016438,2]
[394200301,1763373041487,-500.0,0.00016438,2]
[394200302,1763373041497,-500.0,0.00016438,2]
[394200303,1763373041507,-500.0,0.00016438,2]
[394200304,1763373041516,-500.0,0.00016438,2]
[394200305,1763373041525,-500.0,0.00016438,2]
[394200306,1763373041535,-500.0,0.00016438,2]
[394200307,1763373041544,-500.0,0.00016438,2]
[394200308,1763373041553,-500.0,0.00016438,2]
[394200309,1763373041562,-500.0,0.00016438,2]
[394200310,1763373041572,-500.0,0.00016438,2]
[394200311,1763373041582,-500.0,0.00016438,2]
[394200312,1763373041591,-500.0,0.00016438,2]
[394200313,1763373041602,-500.0,0.00016438,2]
[394200314,1763373041611,-481.75604167,0.00016438,2]
[394200315,1763373041621,-283.74356808,0.00016438,2]
[394200316,1763373041630,-500.0,0.00016438,2]
[394200317,1763373041639,-500.0,0.00016438,2]
[394200318,1763373041649,-500.0,0.00016438,2]
[394200319,1763373041659,-500.0,0.00016438,2]
[394200320,1763373041669,-500.0,0.00016438,2]
[394200321,1763373041678,-500.0,0.00016438,2]
[394200322,1763373041688,-500.0,0.00016438,2]
[394200323,1763373041698,-500.0,0.00016438,2]
[394200324,1763373041707,-500.0,0.00016438,2]
[394200325,1763373041717,-500.0,0.00016438,2]
[394200326,1763373041726,-500.0,0.00016438,2]
[394200327,1763373041736,-500.0,0.00016438,2]
[394200328,1763373041745,-500.0,0.00016438,2]
[394200329,1763373041755,-500.0,0.00016438,2]
[394200330,1763373041764,-500.0,0.00016438,2]
[394200331,1763373041774,-500.0,0.00016438,2]
[394200332,1763373041784,-500.0,0.00016438,2]
[394200333,1763373041796,-500.0,0.00016438,2]
[394200334,1763373041805,-500.0,0.00016438,2]
[394200335,1763373041815,-500.0,0.00016438,2]
[394200336,1763373041824,-500.0,0.00016438,2]
[394200337,1763373041835,-500.0,0.00016438,2]
[394200338,1763373041844,-500.0,0.00016438,2]
[394200339,1763373041854,-500.0,0.00016438,2]
[394200340,1763373041864,-500.0,0.00016438,2]
[394200341,1763373041874,-500.0,0.00016438,2]
[394200342,1763373041883,-500.0,0.00016438,2]
[394200343,1763373041893,-500.0,0.00016438,2]
[394200344,1763373041902,-500.0,0.00016438,2]
[394200345,1763373041912,-500.0,0.00016438,2]
[394200346,1763373041921,-500.0,0.00016438,2]
[394200347,1763373041994,-500.0,0.00016438,2]
[394200348,1763373042005,-500.0,0.00016438,2]
[394200349,1763373042014,-500.0,0.00016438,2]
[394200350,1763373042023,-500.0,0.00016438,2]
[394200351,1763373042031,-500.0,0.00016438,2]
[394200352,1763373042040,-500.0,0.00016438,2]
[394200353,1763373042049,-500.0,0.00016438,2]
[394200354,1763373042057,-500.0,0.00016438,2]
[394200355,1763373042066,-500.0,0.00016438,2]
[394200356,1763373042075,-500.0,0.00016438,2]
[394200357,1763373042084,-935.74610427,0.00016438,2]
[394200358,1763373042092,-500.0,0.00016438,2]
[394200359,1763373042101,-935.74610427,0.00016438,2]
[394200360,1763373042110,-500.0,0.00016438,2]
[394200361,1763373042119,-400.0,0.00016438,2]
[394200362,1763373042128,-200.0,0.00016438,2]
[394200363,1763373042136,-935.74610427,0.00016438,2]
[394200364,1763373042145,-935.74610427,0.00016438,2]
[394200365,1763373042154,-500.0,0.00016438,2]
[394200366,1763373042163,-935.74610427,0.00016438,2]
[394200367,1763373042171,-935.74610427,0.00016438,2]
[394200368,1763373042180,-500.0,0.00016438,2]
[394200369,1763373042190,-500.0,0.00016438,2]
[394200370,1763373042198,-935.74610427,0.00016438,2]
[394200371,1763373042207,-500.0,0.00016438,2]
[394200372,1763373042216,-935.74610427,0.00016438,2]
[394200373,1763373042225,-935.74610427,0.00016438,2]
[394200374,1763373042234,-500.0,0.00016438,2]
[394200375,1763373042242,-935.74610427,0.00016438,2]
[394200376,1763373042251,-935.74610427,0.00016438,2]
[394200377,1763373042260,-935.74610427,0.00016438,2]
[394200378,1763373042269,-935.74610427,0.00016438,2]
[394200379,1763373042278,-935.74610427,0.00016438,2]
[394200380,1763373042287,-935.74610427,0.00016438,2]
[394200381,1763373042296,-935.74610427,0.00016438,2]
[394200382,1763373042305,-935.74610427,0.00016438,2]
[394200383,1763373042315,-935.74610427,0.00016438,2]
[394200384,1763373042324,-935.74610427,0.00016438,2]
[394200385,1763373042333,-935.74610427,0.00016438,2]
[394200386,1763373042342,-935.74610427,0.00016438,2]
[394200387,1763373042351,-935.74610427,0.00016438,2]
[394200388,1763373042360,-935.74610427,0.00016438,2]
[394200389,1763373042370,-935.74610427,0.00016438,2]
[394200390,1763373042380,-935.74610427,0.00016438,2]
[394200391,1763373042389,-935.74610427,0.00016438,2]
[394200392,1763373042398,-935.74610427,0.00016438,2]
[394200393,1763373042408,-935.74610427,0.00016438,2]
[394200394,1763373042418,-935.74610427,0.00016438,2]
[394200395,1763373042427,-935.74610427,0.00016438,2]
[394200396,1763373042437,-935.74610427,0.00016438,2]
[394200397,1763373042446,-935.74610427,0.00016438,2]
[394200398,1763373042455,-935.74610427,0.00016438,2]
[394200399,1763373042464,-935.74610427,0.00016438,2]
[394200400,1763373042473,-935.74610427,0.00016438,2]
[394200401,1763373042482,-935.74610427,0.00016438,2]
[394200402,1763373042492,-935.74610427,0.00016438,2]
[394200403,1763373042501,-935.74610427,0.00016438,2]
[394200404,1763373042510,-935.74610427,0.00016438,2]
[394200405,1763373042519,-935.74610427,0.00016438,2]
[394200406,1763373042529,-935.74610427,0.00016438,2]
[394200407,1763373042539,-935.74610427,0.00016438,2]
[394200408,1763373042551,-935.74610427,0.00016438,2]
[394200409,1763373042560,-935.74610427,0.00016438,2]
[394200410,1763373042569,-935.74610427,0.00016438,2]
[394200411,1763373042578,-927.94822008,0.00016438,2]
[394200412,1763373042587,-927.94822008,0.00016438,2]
[394200413,1763373042596,-927.94822008,0.00016438,2]
[394200414,1763373042606,-927.94822008,0.00016438,2]
[394200415,1763373042615,-927.94822008,0.00016438,2]
[394200416,1763373042624,-927.94822008,0.00016438,2]
[394200417,1763373042634,-927.94822008,0.00016438,2]
[394200418,1763373042643,-927.94822008,0.00016438,2]
[394200419,1763373042653,-927.94822008,0.00016438,2]
[394200420,1763373042662,-927.94822007,0.00016438,2]
[394200421,1763373042671,-500.0,0.00016473,2]
[394200422,1763373042680,-199.06912981,0.00016907,2]
[394200423,1763373042689,-536.64896257,0.00017145,2]
[394200424,1763373042698,-298.19926288,0.00017145,2]
[394200425,1763373042708,-188.01863321,0.0001728,2]
[394200426,1763373042717,-587.0,0.00017857,2]
[394200427,1763373042726,-720.0,0.00017858,2]
[394200428,1763373042735,-40458.89865456,0.0001875,9]
[394200429,1763373042744,-158.003365,0.0001875,9]
[394200430,1763373042754,-341.0,0.00018785,2]
[394200431,1763373042764,-302.48582854,0.000189,2]
[394200432,1763373042773,-152.4981137,0.000189,2]
[394200433,1763373042783,-229.43560724,0.00018907,2]
[394200434,1763373042796,-399.0,0.00018942,2]
[394200435,1763373042806,-302.48582854,0.00019089,2]
[394200436,1763373042815,-185.19814475,0.000192,2]
[394200437,1763373042826,-302.48582854,0.00019278,2]
[394200438,1763373042835,-151.34860465,0.00019467,2]
[394200439,1763373042844,-823.0,0.00019545,2]
[394200440,1763373042854,-6196.34545308,0.00019748,2]
[394200441,1763373042863,-188.01863321,0.00019754,2]
[394200442,1763373042876,-188.02,0.00019954,2]
[394200443,1763373042885,-163.48,0.00019954,2]
[394200444,1763373042894,-163.48,0.00019954,2]
[394200445,1763373042904,-163.48,0.00019954,2]
[394200446,1763373042914,-163.48,0.00019954,2]
[394200447,1763373042923,-163.48,0.00019954,2]
[394200448,1763373042933,-163.5,0.00019954,2]
[394200449,1763373042942,-734.661311,0.00020187,2]
[394200450,1763373042952,-500.0,0.00020189,2]
[394200451,1763373042962,-536.64896257,0.0002019,2]
[394200452,1763373042970,-259.80208466,0.00020907,2]
[394200453,1763373042979,-500.0,0.00021917,2]
[394200455,1763373042989,-3241.832,0.00021918,2]
[394200457,1763373042998,-188.01863321,0.00022227,2]
[394200459,1763373043008,-284.13,0.000223,14]
[394200460,1763373043018,-290.16856209,0.00022907,2]
[394200461,1763373043027,-500.0,0.00022999,2]
[394200462,1763373043037,-356.83,0.00023,7]
[394200463,1763373043047,-15781.46,0.00023,7]
[394200464,1763373043056,-500.0,0.00023013,2]
[394200465,1763373043065,-536.64896257,0.00023235,2]
[394200466,1763373043074,-298.19926288,0.00023235,2]
[394200467,1763373043084,-3402.114146,0.00023729,2]
[394200468,1763373043093,-3402.114146,0.00023844,2]
[394200469,1763373043102,-500.0,0.00024109,2]
[394200470,1763373043111,-3402.114146,0.00024358,2]
[394200471,1763373043121,-3402.114149,0.00024463,2]
[394200472,1763373043130,-554.86098729,0.00024542,2]
[394200473,1763373043140,-600.0,0.00024624,20]
[394200474,1763373043149,-6196.34545308,0.0002469,2]
[394200475,1763373043158,-11665.84499586,0.000247,2]
[394200476,1763373043168,-188.01863321,0.000247,2]
[394200477,1763373043178,-150.0,0.00024773,2]
[394200478,1763373043187,-500.0,0.00024789,2]
[394200479,1763373043197,-500.0,0.00024789,2]
[394200480,1763373043207,-416.15312604,0.00024789,2]
[394200481,1763373043217,-151.0,0.0002479,7]
[394200482,1763373043226,-151.0,0.0002479,7]
[394200483,1763373043236,-151.0,0.0002479,7]
[394200484,1763373043245,-151.0,0.0002479,7]
[394200485,1763373043254,-151.0,0.0002479,7]
[394200486,1763373043263,-151.0,0.0002479,7]
[394200487,1763373043273,-151.0,0.0002479,7]
[394200489,1763373043283,-483.010201,0.0002479,7]
[394200491,1763373043294,-483.010201,0.0002479,7]
[394200493,1763373043304,-483.010201,0.0002479,7]
[394200498,1763373043378,-483.010201,0.0002479,7]
[394200499,1763373043388,-151.0,0.0002479,7]
[394200500,1763373043397,-151.0,0.0002479,7]
[394200501,1763373043406,-151.0,0.0002479,7]
[394200502,1763373043415,-473.759376,0.0002479,2]
[394200503,1763373043425,-171.461143,0.0002479,7]
[394200504,1763373043434,-473.759376,0.0002479,2]
[394200505,1763373043443,-473.759376,0.0002479,2]
[394200506,1763373043453,-473.759376,0.0002479,2]
[394200507,1763373043462,-183.478233,0.0002479,7]
[394200508,1763373043471,-183.478233,0.0002479,7]
[394200509,1763373043480,-183.478233,0.0002479,7]
[394200510,1763373043490,-183.478233,0.0002479,7]
[394200511,1763373043498,-426220.61463019,0.0002479,2]
[394200512,1763373043518,-5694.64354765,0.0002479,2]
[394200513,1763373043764,-3e-08,0.0002479,2]
[394200515,1763373044095,-9836.51447648,0.0002479,2]
[394200518,1763373044131,-508.54553003,0.0002479,2]
[394200519,1763373044142,-9587.64816217,0.0002479,2]
[394200520,1763373045386,-7926.54998111,0.0002479,2]
[394200521,1763373045398,-436.70567626,0.0002479,2]
[394200522,1763373045410,-920.38129747,0.0002479,2]
[394200523,1763373045423,-6070.30134272,0.0002479,2]
[394200581,1763373047012,-1189.55939157,0.0002479,2]
[394200584,1763373047024,-1098.37612677,0.0002479,2]
[394200727,1763373156293,-167.38889056,0.00014907,2]
[394200728,1763373159374,-175.52271418,0.00014907,2]
[394200729,1763373171313,-223.81283861,0.00014907,2]
[394200730,1763373171333,-356.36672913,0.00014908,2]
[394200731,1763373173157,-143.63327087,0.00014908,2]
[394200732,1763373173179,-360.54902504,0.00014908,2]
[394200733,1763373176135,-139.45097496,0.00014908,2]
[394200734,1763373176157,-208.78620718,0.00014908,2]
[394200735,1763373179442,-291.21379282,0.00014908,2]
[394200736,1763373179463,-112.47555277,0.00014908,2]
[394200737,1763373183545,-252.19094931,0.00014908,2]
[394200738,1763373186272,-135.33349792,0.00014908,2]
[394200739,1763373186293,-58.34617414,0.00014908,2]
[394200740,1763373187810,-356.76036098,0.00014908,2]
[394200741,1763373189868,-300.0,0.00014905,2]
[394200742,1763373192545,-158.11418997,0.00014905,2]
[394200744,1763373467543,604.1,0.0003287,120]
[394200745,1763373592387,-435.49364651,0.00014803,2]
[394200746,1763373594018,-534.1463347,0.00014803,2]
[394200747,1763373597150,-269.37639683,0.00014803,2]
[394200748,1763373599308,-178.11247122,0.00014803,2]
[394200749,1763374024614,151.79,0.00032876,120]
[394200750,1763374043091,-158.11418997,0.00014753,2]
[394200751,1763374043112,-174.70265238,0.00014777,2]
[394200752,1763374043132,-5879.55067808,0.00014799,2]
[394200753,1763374043153,-186.03740082,0.000148,2]
[394200754,1763374043175,-500.0,0.00014873,2]
[394200755,1763374043195,-500.0,0.00014873,2]
[394200756,1763374043216,-300.0,0.00014897,2]
[394200757,1763374043236,-432.10121762,0.00014898,2]
[394200758,1763374062833,6645.2571598,0.00014012,2]
[394200759,1763374080186,175.34,0.00014585,9]
[394200760,1763374080463,175.34,0.00014585,9]
[394200761,1763374150127,-5144.60684332,0.00014798,2]
[394200762,1763374150149,-300.0,0.00014896,2]
[394200763,1763374150173,-500.0,0.00014897,2]
[394200764,1763374150195,-500.0,0.00014897,2]
[394200765,1763374150215,-500.0,0.00014897,2]
[394200766,1763374150234,-500.0,0.00014897,2]
[394200767,1763374150255,-500.0,0.00014897,2]
[394200768,1763374150278,-579.11602504,0.00014897,2]
[394200769,1763374150298,-40.58643948,0.00014897,2]
[394200770,1763374165109,-459.41356052,0.00014897,2]
[394200771,1763374165132,-500.0,0.00014897,2]
[394200772,1763374165154,-500.0,0.00014897,2]
[394200773,1763374165174,-500.0,0.00014897,2]
[394200774,1763374165194,-500.0,0.00014897,2]
[394200775,1763374165218,-500.0,0.00014897,2]
[394200776,1763374165239,-500.0,0.00014897,2]
[394200777,1763374165263,-500.0,0.00014897,2]
[394200778,1763374165284,-500.0,0.00014897,2]
[394200779,1763374165304,-173.89371334,0.00014897,2]
[394200780,1763374165326,-500.0,0.00014897,2]
[394200781,1763374165346,-500.0,0.00014897,2]
[394200782,1763374165365,-500.0,0.00014897,2]
[394200783,1763374165385,-500.0,0.00014897,2]
[394200784,1763374165405,-500.0,0.00014897,2]
[394200785,1763374165426,-500.0,0.00014897,2]
[394200786,1763374165445,-500.0,0.00014897,2]
[394200787,1763374165468,-500.0,0.00014897,2]
[394200788,1763374165490,-500.0,0.00014897,2]
[394200789,1763374165512,-500.0,0.00014897,2]
[394200790,1763374165532,-4.43872776,0.00014897,2]
[394200791,1763374167107,-495.56127224,0.00014897,2]
[394200792,1763374167132,-500.0,0.00014897,2]
[394200793,1763374167154,-500.0,0.00014897,2]
[394200794,1763374167176,-365.47429569,0.00014897,2]
[394200796,1763374174074,1323.81,0.00012329,2]
[394200797,1763374174127,-134.52570431,0.00014897,2]
[394200798,1763374174239,-149.74764854,0.00014897,2]
[394200799,1763374184463,1103.17,0.00012329,2]
[394200801,1763374194952,919.31,0.00012329,2]
[394200802,1763374197652,1226.24944351,0.00014008,2]
[394200803,1763374197678,23567.89340199,0.00014008,2]
[394200804,1763374205243,766.09,0.00012329,2]
[394200805,1763374215650,638.41,0.00012329,2]
[394200806,1763374226174,532.01,0.00012329,2]
[394200845,1763374233756,-186.03740081,0.00014797,2]
[394200846,1763374233772,-98.35433591,0.00014797,2]
[394200847,1763374236589,2501.97,0.0001531,3]
[394200869,1763374238662,-624.14834076,0.00014797,2]
[394200871,1763374238672,-185.43756056,0.00014847,2]
[394200873,1763374238682,-500.0,0.00014873,2]
[394200875,1763374238691,-513.64025914,0.00014873,2]
[394200877,1763374238700,-500.0,0.00014873,2]
[394200878,1763374238710,-500.0,0.00014896,2]
[394200880,1763374238719,-500.0,0.00014896,2]
[394200881,1763374238728,-500.0,0.00014896,2]
[394200882,1763374238738,-500.0,0.00014896,2]
[394200883,1763374238747,-500.0,0.00014896,2]
[394200884,1763374238756,-500.0,0.00014896,2]
[394200885,1763374238765,-435.81721987,0.00014896,2]
[394200886,1763374238775,-500.0,0.00014896,2]
[394200887,1763374238784,-500.0,0.00014896,2]
[394200888,1763374238794,-500.0,0.00014896,2]
[394200889,1763374238804,-500.0,0.00014896,2]
[394200890,1763374238814,-500.0,0.00014896,2]
[394200891,1763374238823,-500.0,0.00014896,2]
[394200892,1763374238832,-500.0,0.00014896,2]
[394200893,1763374238854,-500.0,0.00014896,2]
[394200894,1763374238865,-500.0,0.00014896,2]
[394200895,1763374238876,-500.0,0.00014896,2]
[394200896,1763374238886,-500.0,0.00014896,2]
[394200897,1763374238895,-500.0,0.00014896,2]
[394200898,1763374238906,-500.0,0.00014896,2]
[394200899,1763374238916,-500.0,0.00014896,2]
[394200900,1763374238925,-500.0,0.00014896,2]
[394200901,1763374238935,-500.0,0.00014896,2]
[394200902,1763374238945,-500.0,0.00014896,2]
[394200903,1763374238956,-500.0,0.00014896,2]
[394200904,1763374238965,-500.0,0.00014896,2]
[394200905,1763374238975,-500.0,0.00014896,2]
[394200906,1763374238984,-500.0,0.00014896,2]
[394200907,1763374238994,-500.0,0.00014896,2]
[394200908,1763374239006,-500.0,0.00014896,2]
[394200909,1763374239016,-500.0,0.00014896,2]
[394200910,1763374239027,-500.0,0.00014896,2]
[394200911,1763374239036,-432.61648764,0.00014896,2]
[394200912,1763374239046,-500.0,0.00014896,2]
[394200913,1763374239056,-500.0,0.00014896,2]
[394200914,1763374239067,-500.0,0.00014896,2]
[394200915,1763374239077,-500.0,0.00014896,2]
[394200916,1763374239086,-500.0,0.00014896,2]
[394200917,1763374239096,-500.0,0.00014896,2]
[394200918,1763374239108,-500.0,0.00014896,2]
[394200919,1763374239119,-500.0,0.00014896,2]
[394200920,1763374239129,-500.0,0.00014896,2]
[394200921,1763374239139,-500.0,0.00014896,2]
[394200922,1763374239150,-500.0,0.00014896,2]
[394200923,1763374239161,-500.0,0.00014896,2]
[394200924,1763374239170,-500.0,0.00014896,2]
[394200925,1763374239180,-500.0,0.00014896,2]
[394200926,1763374239190,-500.0,0.00014896,2]
[394200927,1763374239200,-500.0,0.00014896,2]
[394200928,1763374239210,-573.30738427,0.00014896,2]
[394200929,1763374239220,-500.0,0.00014896,2]
[394200930,1763374239229,-500.0,0.00014896,2]
[394200931,1763374239238,-616.01544101,0.00014896,2]
[394200932,1763374239246,-500.0,0.00014896,2]
[394200933,1763374239255,-500.0,0.00014896,2]
[394200934,1763374239264,-500.0,0.00014896,2]
[394200935,1763374239273,-500.0,0.00014896,2]
[394200936,1763374239282,-500.0,0.00014896,2]
[394200937,1763374239291,-500.0,0.00014896,2]
[394200938,1763374239422,-500.0,0.00014896,2]
[394200939,1763374239437,-500.0,0.00014896,2]
[394200940,1763374239446,-500.0,0.00014896,2]
[394200941,1763374239455,-500.0,0.00014896,2]
[394200942,1763374239464,-500.0,0.00014896,2]
[394200943,1763374239473,-500.0,0.00014896,2]
[394200944,1763374239483,-500.0,0.00014896,2]
[394200945,1763374239492,-500.0,0.00014896,2]
[394200946,1763374239502,-500.0,0.00014896,2]
[394200947,1763374239511,-500.0,0.00014896,2]
[394200948,1763374239520,-500.0,0.00014896,2]
[394200949,1763374239530,-500.0,0.00014896,2]
[394200950,1763374239539,-500.0,0.00014896,2]
[394200951,1763374239549,-500.0,0.00014896,2]
[394200952,1763374239558,-500.0,0.00014896,2]
[394200953,1763374239571,-302.35669728,0.00014896,2]
[394200954,1763374239580,-300.0,0.00014896,2]
[394200955,1763374239588,-300.0,0.00014896,2]
[394200956,1763374239598,-300.0,0.00014896,2]
[394200957,1763374239607,-1200.0,0.00014896,2]
[394200958,1763374239617,-300.0,0.00014896,2]
[394200959,1763374239626,-500.0,0.00014897,2]
[394200960,1763374239635,-50000.0,0.00014897,2]
[394200961,1763374239645,-1200.0,0.00014897,2]
[394200962,1763374239654,-500.0,0.00014902,2]
[394200963,1763374239663,-500.0,0.00014902,2]
[394200964,1763374239673,-500.0,0.00014902,2]
[394200965,1763374239682,-500.0,0.00014902,2]
[394200966,1763374239692,-500.0,0.00014902,2]
[394200967,1763374239701,-500.0,0.00014902,2]
[394200968,1763374239710,-500.0,0.00014902,2]
[394200969,1763374239719,-413.34659092,0.00014902,2]